fUSD/lending_fUSD_20240222
["ID","MTS","AMOUNT","RATE_DAILY","PERIOD"]
[314834640,1708582234211,-2398.83,0.00034521,2]
[314834641,1708582234221,-197.43,0.00034521,2]
[314834642,1708582234231,-431.78,0.00034521,2]
[314834643,1708582234240,-329.19,0.00034521,2]
[314834644,1708582234250,-219.1,0.00034521,2]
[314834645,1708582234259,-300.0,0.00034521,2]
[314834646,1708582234269,-150.0,0.00034521,2]
[314834647,1708582234278,-150.0,0.00034521,2]
[314834648,1708582234287,-159.35,0.00034578,2]
[314834649,1708582234301,-177.69,0.00034616,2]
[314834650,1708582234311,-14240.6870311,0.00034694,2]
[314834651,1708582234441,-390.36280144,0.00034694,2]
[314834652,1708582234454,-1094.60078796,0.00034694,2]
[314834653,1708582234467,-38485.33718176,0.00034694,2]
[314834654,1708582235647,404.67017582,0.00015725,2]
[314834656,1708582238076,-210.0,0.00028864,2]
[314834657,1708582238088,-210.0,0.00031259,6]
[314834658,1708582238098,-129.41,0.00033654,10]
[314834659,1708582238241,-80.59,0.00033654,10]
[314834660,1708582238251,-250.0,0.0003411,2]
[314834661,1708582238261,-45789.01219774,0.00034694,2]
[314834662,1708582238272,-2236.446005,0.00034794,2]
[314834663,1708582238282,-22241.635194,0.00034794,2]
[314834664,1708582238292,-2327.774455,0.00034794,2]
[314834665,1708582238302,-966.112657,0.00034794,2]
[314834666,1708582238312,-8322.799945,0.00034794,2]
[314834667,1708582238322,-2706.609888,0.00034794,2]
[314834668,1708582238331,-669.77206,0.00034794,2]
[314834669,1708582238341,-5853.061893,0.00034794,2]
[314834671,1708582238351,-728.916216,0.00034794,2]
[314834673,1708582238360,-698.284923,0.00034794,2]
[314834674,1708582238369,-207.8188,0.00034831,2]
[314834677,1708582238385,-152.0,0.00034863,5]
[314834679,1708582238396,-14942.65887441,0.000349,2]
[314834681,1708582238406,-17024.1577813,0.000349,120]
[314834683,1708582238415,-1218.98770576,0.000349,7]
[314834685,1708582238425,-3901.81551668,0.000349,2]
[314834687,1708582238435,-168.85989997,0.000349,2]
[314834689,1708582238444,-696.6,0.0003491,2]
[314834691,1708582238453,-2981.928007,0.00034931,2]
[314834693,1708582238463,-29655.513592,0.00034931,2]
[314834695,1708582238472,-3103.699274,0.00034931,2]
[314834697,1708582238481,-1288.15021,0.00034931,2]
[314834699,1708582238491,-11097.066594,0.00034931,2]
[314834701,1708582238501,-3608.813184,0.00034931,2]
[314834703,1708582238510,-893.029413,0.00034931,2]
[314834705,1708582238520,-7804.082524,0.00034931,2]
[314834707,1708582238529,-971.888288,0.00034931,2]
[314834709,1708582238539,-931.046565,0.00034931,2]
[314834711,1708582238548,-13097.94509233,0.0003498,2]
[314834713,1708582238557,-1581.64343341,0.0003499,2]
[314834715,1708582238567,-1000.0,0.00034999,5]
[314834717,1708582238577,-161.0,0.00035,5]
[314834719,1708582238586,-490.29809702,0.00035,4]
[314834721,1708582238595,-481.06871168,0.00035,30]
[314834723,1708582238605,-610990.58803622,0.00035,2]
[314834725,1708582238614,-12955.2677315,0.00035,2]
[314834727,1708582238624,-98868.10137652,0.00035,2]
[314834729,1708582238633,-198492.70290859,0.00035,4]
[314834732,1708582238643,-155.0,0.00035,4]
[314834734,1708582238653,-2075.31844449,0.00035,2]
[314834736,1708582238662,-701.46532572,0.00035,4]
[314834738,1708582238672,-150.1,0.00035,2]
[314834740,1708582238681,-209.25366058,0.00035,5]
[314834742,1708582238691,-500.0,0.00035,2]
[314834744,1708582238700,-166.9,0.0003501,2]
[314834746,1708582238710,-308.0,0.00035021,2]
[314834747,1708582238719,-1218.98770575,0.00035068,7]
[314834748,1708582238728,-3727.410008,0.00035068,2]
[314834749,1708582238738,-37069.39199,0.00035068,2]
[314834750,1708582238747,-3879.624092,0.00035068,2]
[314834751,1708582238756,-1610.187762,0.00035068,2]
[314834752,1708582238765,-13871.333242,0.00035068,2]
[314834753,1708582238774,-4511.01648,0.00035068,2]
[314834754,1708582238783,-1116.286767,0.00035068,2]
[314834755,1708582238792,-9755.103155,0.00035068,2]
[314834756,1708582238801,-1214.86036,0.00035068,2]
[314834757,1708582238811,-1163.808206,0.00035068,2]
[314834758,1708582238822,-177.69,0.00035164,2]
[314834759,1708582238832,-1218.98770575,0.00035235,7]
[314834760,1708582238841,-44803.41533796,0.0003525,2]
[314834762,1708582238851,-10000.0,0.00035261,3]
[314834764,1708582238861,-155.0,0.0003527,2]
[314834766,1708582238871,-1337.44,0.00035297,2]
[314834768,1708582238880,-176.2,0.00035312,2]
[314834770,1708582238890,-200.0,0.00035329,3]
[314834772,1708582238900,-800.0,0.0003533,2]
[314834774,1708582238911,-200.0,0.0003533,3]
[314834776,1708582238920,-200.0,0.0003533,3]
[314834778,1708582238930,-800.0,0.0003533,2]
[314834781,1708582238940,-800.0,0.0003533,2]
[314834783,1708582238950,-800.0,0.0003533,2]
[314834784,1708582238960,-200.0,0.0003533,10]
[314834786,1708582238970,-200.0,0.0003533,10]
[314834788,1708582238979,-150.0,0.00035341,2]
[314834790,1708582238988,-5218.374012,0.00035342,2]
[314834792,1708582238998,-51897.148787,0.00035342,2]
[314834794,1708582239007,-5431.473729,0.00035342,2]
[314834796,1708582239017,-2254.262867,0.00035342,2]
[314834798,1708582239027,-19419.866539,0.00035342,2]
[314834801,1708582239038,-6315.423072,0.00035342,2]
[314834803,1708582239048,-1562.801473,0.00035342,2]
[314834805,1708582239058,-13657.144417,0.00035342,2]
[314834807,1708582239068,-1700.804504,0.00035342,2]
[314834809,1708582239077,-1629.331488,0.00035342,2]
[314834811,1708582239088,-201.02040667,0.00035342,2]
[314834813,1708582239098,-426.4,0.00035342,2]
[314834815,1708582239108,-150.0,0.00035346,2]
[314834817,1708582239118,-150.0,0.00035347,2]
[314834819,1708582239127,-150.0,0.00035353,2]
[314834821,1708582239137,-150.0,0.00035356,2]
[314834823,1708582239147,-150.0,0.00035363,2]
[314834825,1708582239156,-150.0,0.0003537,2]
[314834827,1708582239165,-150.0,0.00035374,2]
[314834829,1708582239175,-300.0,0.00035374,2]
[314834831,1708582239185,-150.0,0.00035376,2]
[314834833,1708582239195,-409.11079435,0.00035379,2]
[314834835,1708582239204,-150.0,0.00035381,2]
[314834837,1708582239214,-150.0,0.00035383,2]
[314834839,1708582239223,-150.0,0.00035389,2]
[314834841,1708582239233,-150.0,0.00035398,2]
[314834843,1708582239243,-4346.0,0.000354,30]
[314834845,1708582239254,-150.0,0.00035402,2]
[314834848,1708582239264,-1218.98770575,0.00035403,8]
[314834850,1708582239273,-5000.0,0.00035407,3]
[314834852,1708582239283,-150.0,0.00035407,2]
[314834854,1708582239292,-707.99718366,0.00035407,2]
[314834856,1708582239302,-1081.36991772,0.00035407,2]
[314834858,1708582239312,-300.0,0.00035408,2]
[314834860,1708582239321,-150.0,0.0003541,2]
[314834862,1708582239331,-168.57793922,0.00035415,2]
[314834864,1708582239342,-150.0,0.00035422,2]
[314834867,1708582239360,-300.0,0.00035424,2]
[314834869,1708582239373,-150.0,0.00035426,2]
[314834871,1708582239383,-151.33247269,0.00035427,2]
[314834873,1708582239393,-150.0,0.00035431,2]
[314834876,1708582239403,-150.0,0.00035433,2]
[314834878,1708582239416,-150.0,0.00035433,2]
[314834880,1708582239426,-561.7091,0.00035438,2]
[314834882,1708582239436,-300.0,0.00035442,2]
[314834884,1708582239446,-150.0,0.00035445,2]
[314834886,1708582239456,-150.0,0.00035452,2]
[314834888,1708582239466,-300.0,0.00035452,2]
[314834890,1708582239476,-150.0,0.00035456,2]
[314834892,1708582239487,-150.0,0.00035456,2]
[314834895,1708582239497,-150.0,0.00035457,2]
[314834897,1708582239507,-150.0,0.00035459,2]
[314834899,1708582239518,-150.0,0.00035462,2]
[314834901,1708582239528,-300.0,0.0003547,2]
[314834903,1708582239538,-150.0,0.00035474,2]
[314834905,1708582239547,-168.85989996,0.00035482,2]
[314834907,1708582239558,-150.0,0.00035482,2]
[314834909,1708582239568,-150.0,0.00035482,2]
[314834911,1708582239579,-150.0,0.00035486,2]
[314834913,1708582239593,-308.68221181,0.00035491,2]
[314834916,1708582239603,-150.0,0.00035495,2]
[314834918,1708582239613,-150.0,0.00035495,2]
[314834920,1708582239624,-151.022211,0.00035498,2]
[314834922,1708582239633,-151.022211,0.00035498,2]
[314834924,1708582239643,-151.022211,0.00035498,2]
[314834926,1708582239654,-151.022211,0.00035498,2]
[314834928,1708582239664,-151.022211,0.00035498,2]
[314834930,1708582239674,-151.022211,0.00035498,2]
[314834932,1708582239685,-151.022211,0.00035498,2]
[314834935,1708582239695,-151.022211,0.00035498,2]
[314834937,1708582239705,-150.0,0.00035498,2]
[314834939,1708582239716,-150.0,0.000355,2]
[314834941,1708582239725,-245000.0,0.00035507,2]
[314834943,1708582239735,-38996.85446124,0.00035507,2]
[314834945,1708582239744,-521.0337575,0.00035507,2]
[314834947,1708582239754,-150.0,0.00035512,2]
[314834949,1708582239765,-1000.0,0.00035515,5]
[314834951,1708582239775,-168.57594783,0.00035516,2]
[314834953,1708582239785,-55555.0,0.00035516,3]
[314834955,1708582239795,-150.0,0.0003552,2]
[314834958,1708582239805,-150.0,0.00035527,2]
[314834960,1708582239815,-300.0,0.00035533,2]
[314834962,1708582239825,-1500.0,0.00035535,2]
[314834964,1708582239841,-150.0,0.00035536,2]
[314834966,1708582239851,-150.0,0.00035543,2]
[314834968,1708582239863,-150.0,0.00035548,2]
[314834970,1708582239874,-150.0,0.0003555,2]
[314834972,1708582239883,-150.0,0.00035551,2]
[314834974,1708582239893,-150.0,0.00035563,2]
[314834976,1708582239903,-150.0,0.00035563,2]
[314834978,1708582239914,-300.0,0.00035566,2]
[314834981,1708582239924,-308.0,0.00035568,2]
[314834983,1708582239933,-150.0,0.00035569,2]
[314834985,1708582239943,-1218.98770575,0.00035571,8]
[314834987,1708582239952,-150.0,0.00035572,2]
[314834989,1708582239962,-150.0,0.00035578,2]
[314834991,1708582239972,-150.0,0.00035586,2]
[314834993,1708582239981,-300.0,0.00035587,2]
[314834995,1708582239991,-152.77,0.000356,9]
[314834997,1708582240001,-23882.6976616,0.00035603,2]
[314834999,1708582240011,-690.1337036,0.00035603,2]
[314835001,1708582240021,-7750.8043078,0.00035603,2]
[314835003,1708582240031,-2000.0,0.00035603,2]
[314835027,1708582240248,-200.0,0.00035603,2]
[314835029,1708582240258,-2000.0,0.00035603,2]
[314835031,1708582240267,-200.0,0.00035603,2]
[314835033,1708582240276,-2000.0,0.00035603,2]
[314835035,1708582240286,-200.0,0.00035603,2]
[314835037,1708582240295,-3000.0,0.00035603,2]
[314835039,1708582240305,-200.0,0.00035603,2]
[314835041,1708582240315,-4000.0,0.00035603,2]
[314835043,1708582240324,-3602.86,0.00035603,2]
[314835045,1708582240336,-205.0,0.00035607,2]
[314835047,1708582240346,-150.318,0.00035607,2]
[314835049,1708582240355,-150.282,0.00035607,2]
[314835051,1708582240366,-150.1,0.00035607,2]
[314835053,1708582240376,-150.0,0.00035607,2]
[314835055,1708582240386,-249.818,0.00035607,2]
[314835057,1708582240396,-171.671,0.00035607,2]
[314835059,1708582240406,-150.263,0.00035607,2]
[314835061,1708582240415,-1880.421,0.00035607,2]
[314835063,1708582240424,-2704.92,0.00035607,2]
[314835065,1708582240434,-1382.272,0.00035607,2]
[314835067,1708582240443,-961.016,0.00035607,2]
[314835069,1708582240453,-549.336,0.00035607,2]
[314835071,1708582240463,-717.386,0.00035607,2]
[314835073,1708582240472,-352.062,0.00035607,2]
[314835075,1708582240482,-1987.037,0.00035607,2]
[314835077,1708582240490,-158.613,0.00035607,2]
[314835079,1708582240500,-1285.822,0.00035607,2]
[314835081,1708582240509,-1000.0,0.00035611,4]
[314835083,1708582240518,-150.0,0.00035611,2]
[314835085,1708582240527,-150.0,0.00035611,2]
[314835087,1708582240536,-443.04181066,0.00035613,4]
[314835089,1708582240546,-3683.75,0.00035614,2]
[314835091,1708582240555,-465379.51326279,0.00035614,2]
[314835093,1708582240565,-41294.86751641,0.00035614,2]
[314835095,1708582240574,-152.54692445,0.00035615,50]
[314835097,1708582240583,-150.0,0.00035615,30]
[314835099,1708582240593,-150.0,0.00035615,30]
[314835101,1708582240602,-150.0,0.00035615,30]
[314835103,1708582240611,-150.0,0.00035615,30]
[314835105,1708582240620,-150.0,0.00035615,30]
[314835107,1708582240630,-150.0,0.00035615,30]
[314835109,1708582240640,-150.0,0.00035615,30]
[314835111,1708582240649,-150.0,0.00035615,30]
[314835113,1708582240658,-150.0,0.00035615,30]
[314835116,1708582240667,-150.0,0.00035615,30]
[314835117,1708582240677,-150.0,0.00035615,30]
[314835119,1708582240686,-162.45994033,0.00035615,2]
[314835122,1708582240695,-4981.76421879,0.00035615,2]
[314835123,1708582240705,-1005.49971921,0.00035615,5]
[314835126,1708582240715,-3646.71,0.00035616,2]
[314835128,1708582240725,-2000.0,0.00035616,2]
[314835129,1708582240733,-2000.0,0.00035616,2]
[314835131,1708582240742,-810.72720146,0.00035616,2]
[314835133,1708582240752,-2000.0,0.00035616,2]
[314835135,1708582240761,-2000.0,0.00035616,2]
[314835137,1708582240770,-2000.0,0.00035616,2]
[314835139,1708582240779,-500.0,0.00035616,2]
[314835141,1708582240788,-504.07541387,0.00035616,2]
[314835143,1708582240797,-303.2857852,0.00035616,2]
[314835145,1708582240806,-445.99827214,0.00035616,2]
[314835147,1708582240815,-500.0,0.00035616,2]
[314835149,1708582240827,-500.0,0.00035616,2]
[314835152,1708582240846,-500.0,0.00035616,2]
[314835154,1708582240863,-500.0,0.00035616,2]
[314835156,1708582240873,-495.07182445,0.00035616,2]
[314835158,1708582240884,-579.47171875,0.00035616,2]
[314835160,1708582240894,-500.0,0.00035616,2]
[314835162,1708582240903,-505.5088808,0.00035616,2]
[314835164,1708582240913,-500.0,0.00035616,2]
[314835166,1708582240923,-554.92208424,0.00035616,2]
[314835168,1708582240933,-500.0,0.00035616,2]
[314835170,1708582240942,-500.0,0.00035616,2]
[314835172,1708582240951,-500.0,0.00035616,2]
[314835174,1708582240960,-581.00296587,0.00035616,2]
[314835176,1708582240969,-487.43916834,0.00035616,2]
[314835178,1708582240979,-514.15135601,0.00035616,2]
[314835180,1708582240988,-614.28138776,0.00035616,2]
[314835182,1708582240998,-500.0,0.00035616,2]
[314835184,1708582241007,-173.97587138,0.00035616,2]
[314835186,1708582241016,-533.98406292,0.00035616,2]
[314835188,1708582241025,-516.94002197,0.00035616,2]
[314835190,1708582241035,-500.0,0.00035616,2]
[314835191,1708582241044,-500.0,0.00035616,2]
[314835193,1708582241054,-504.40198842,0.00035616,2]
[314835196,1708582241063,-523.88372643,0.00035616,2]
[314835197,1708582241073,-311.13636137,0.00035616,2]
[314835200,1708582241083,-500.0,0.00035616,2]
[314835202,1708582241092,-225.45668039,0.00035616,2]
[314835204,1708582241101,-541.5360739,0.00035616,2]
[314835206,1708582241110,-503.99876947,0.00035616,2]
[314835208,1708582241120,-762.4366293,0.00035616,2]
[314835210,1708582241130,-570.82953736,0.00035616,2]
[314835212,1708582241140,-213.04636653,0.00035616,2]
[314835214,1708582241150,-315.74414032,0.00035616,2]
[314835216,1708582241159,-531.91150754,0.00035616,2]
[314835218,1708582241169,-500.0,0.00035616,2]
[314835220,1708582241178,-505.20429226,0.00035616,2]
[314835222,1708582241187,-500.0,0.00035616,2]
[314835224,1708582241197,-500.0,0.00035616,2]
[314835226,1708582241206,-500.0,0.00035616,2]
[314835228,1708582241215,-500.0,0.00035616,2]
[314835230,1708582241224,-500.0,0.00035616,2]
[314835232,1708582241233,-500.0,0.00035616,2]
[314835234,1708582241242,-500.0,0.00035616,2]
[314835236,1708582241251,-500.0,0.00035616,2]
[314835238,1708582241261,-500.0,0.00035616,2]
[314835240,1708582241270,-500.0,0.00035616,2]
[314835242,1708582241279,-500.0,0.00035616,2]
[314835244,1708582241287,-503.06850829,0.00035616,2]
[314835245,1708582241297,-502.13894178,0.00035616,2]
[314835246,1708582241306,-500.0,0.00035616,2]
[314835247,1708582241315,-550.39092327,0.00035616,2]
[314835248,1708582241324,-502.96227681,0.00035616,2]
[314835249,1708582241333,-500.0,0.00035616,2]
[314835250,1708582241343,-500.0,0.00035616,2]
[314835251,1708582241352,-500.0,0.00035616,2]
[314835252,1708582241361,-500.0,0.00035616,2]
[314835253,1708582241370,-500.0,0.00035616,2]
[314835254,1708582241379,-500.0,0.00035616,2]
[314835256,1708582241388,-500.0,0.00035616,2]
[314835258,1708582241397,-500.0,0.00035616,2]
[314835260,1708582241406,-500.0,0.00035616,2]
[314835262,1708582241416,-500.0,0.00035616,2]
[314835264,1708582241425,-500.0,0.00035616,2]
[314835266,1708582241434,-500.0,0.00035616,2]
[314835268,1708582241443,-583.41206517,0.00035616,2]
[314835270,1708582241452,-500.0,0.00035616,2]
[314835272,1708582241461,-500.0,0.00035616,2]
[314835274,1708582241470,-500.0,0.00035616,2]
[314835276,1708582241480,-500.0,0.00035616,2]
[314835278,1708582241489,-504.24307689,0.00035616,2]
[314835280,1708582241498,-500.0,0.00035616,2]
[314835282,1708582241507,-500.0,0.00035616,2]
[314835284,1708582241516,-500.0,0.00035616,2]
[314835286,1708582241525,-705.78,0.00035616,2]
[314835288,1708582241535,-479.24500323,0.00035616,2]
[314835290,1708582241544,-500.0,0.00035616,2]
[314835292,1708582241553,-2022.96913683,0.00035616,2]
[314835294,1708582241562,-500.0,0.00035616,2]
[314835296,1708582241571,-500.0,0.00035616,2]
[314835298,1708582241580,-989.28,0.00035616,2]
[314835300,1708582241590,-500.0,0.00035616,7]
[314835302,1708582241599,-500.0,0.00035616,2]
[314835304,1708582241609,-500.0,0.00035616,2]
[314835306,1708582241618,-500.0,0.00035616,2]
[314835308,1708582241628,-500.0,0.00035616,2]
[314835310,1708582241638,-500.0,0.00035616,2]
[314835312,1708582241647,-500.0,0.00035616,2]
[314835314,1708582241657,-500.0,0.00035616,2]
[314835316,1708582241666,-503.30514719,0.00035616,2]
[314835318,1708582241676,-500.0,0.00035616,2]
[314835320,1708582241685,-500.0,0.00035616,2]
[314835322,1708582241694,-500.0,0.00035616,2]
[314835324,1708582241703,-500.0,0.00035616,2]
[314835326,1708582241712,-500.0,0.00035616,2]
[314835328,1708582241723,-500.0,0.00035616,2]
[314835330,1708582241732,-500.0,0.00035616,2]
[314835332,1708582241741,-500.0,0.00035616,2]
[314835334,1708582241750,-500.0,0.00035616,2]
[314835336,1708582241759,-500.0,0.00035616,2]
[314835338,1708582241768,-500.0,0.00035616,2]
[314835340,1708582241777,-500.0,0.00035616,2]
[314835342,1708582241786,-500.0,0.00035616,2]
[314835344,1708582241795,-500.0,0.00035616,2]
[314835346,1708582241804,-500.0,0.00035616,2]
[314835348,1708582241813,-500.0,0.00035616,2]
[314835350,1708582241822,-500.0,0.00035616,2]
[314835352,1708582241833,-500.0,0.00035616,2]
[314835354,1708582241843,-500.0,0.00035616,2]
[314835356,1708582241852,-500.0,0.00035616,2]
[314835358,1708582241862,-502.58968469,0.00035616,2]
[314835360,1708582241871,-538.61,0.00035616,2]
[314835362,1708582241881,-500.0,0.00035616,2]
[314835364,1708582241890,-500.0,0.00035616,2]
[314835366,1708582241900,-500.0,0.00035616,2]
[314835368,1708582241911,-500.0,0.00035616,2]
[314835370,1708582241920,-500.0,0.00035616,2]
[314835372,1708582241930,-519.74,0.00035616,2]
[314835374,1708582241938,-500.0,0.00035616,2]
[314835376,1708582241947,-500.0,0.00035616,2]
[314835378,1708582241956,-508.18350262,0.00035616,2]
[314835380,1708582241965,-500.0,0.00035616,2]
[314835382,1708582241974,-500.0,0.00035616,2]
[314835384,1708582241983,-500.0,0.00035616,2]
[314835386,1708582241992,-500.0,0.00035616,2]
[314835388,1708582242002,-500.0,0.00035616,2]
[314835390,1708582242011,-500.0,0.00035616,2]
[314835392,1708582242020,-500.0,0.00035616,2]
[314835394,1708582242030,-500.0,0.00035616,2]
[314835396,1708582242039,-500.0,0.00035616,2]
[314835398,1708582242048,-500.0,0.00035616,2]
[314835400,1708582242058,-500.0,0.00035616,2]
[314835402,1708582242067,-500.0,0.00035616,2]
[314835404,1708582242076,-500.0,0.00035616,2]
[314835406,1708582242086,-500.0,0.00035616,2]
[314835408,1708582242095,-500.0,0.00035616,2]
[314835411,1708582242105,-500.0,0.00035616,2]
[314835413,1708582242114,-529.86309855,0.00035616,2]
[314835415,1708582242123,-500.0,0.00035616,2]
[314835416,1708582242133,-500.0,0.00035616,2]
[314835419,1708582242142,-1118.62392656,0.00035616,30]
[314835421,1708582242152,-500.0,0.00035616,2]
[314835422,1708582242161,-500.0,0.00035616,2]
[314835424,1708582242170,-500.0,0.00035616,2]
[314835426,1708582242179,-503.60934184,0.00035616,2]
[314835428,1708582242189,-500.0,0.00035616,2]
[314835430,1708582242198,-505.15021391,0.00035616,2]
[314835433,1708582242208,-500.0,0.00035616,2]
[314835435,1708582242217,-500.0,0.00035616,2]
[314835436,1708582242226,-500.0,0.00035616,2]
[314835439,1708582242236,-500.0,0.00035616,2]
[314835441,1708582242245,-500.0,0.00035616,2]
[314835443,1708582242255,-500.0,0.00035616,2]
[314835445,1708582242264,-500.0,0.00035616,2]
[314835447,1708582242273,-500.0,0.00035616,2]
[314835448,1708582242282,-500.0,0.00035616,2]
[314835450,1708582242291,-500.0,0.00035616,2]
[314835453,1708582242301,-500.0,0.00035616,2]
[314835455,1708582242310,-507.10389327,0.00035616,2]
[314835456,1708582242319,-500.0,0.00035616,2]
[314835458,1708582242328,-500.0,0.00035616,2]
[314835460,1708582242338,-500.0,0.00035616,2]
[314835462,1708582242347,-500.0,0.00035616,2]
[314835465,1708582242356,-502.55470394,0.00035616,2]
[314835467,1708582242365,-500.0,0.00035616,2]
[314835469,1708582242374,-503.07824912,0.00035616,2]
[314835471,1708582242384,-500.0,0.00035616,2]
[314835473,1708582242392,-500.0,0.00035616,2]
[314835475,1708582242402,-226.34883199,0.00035616,2]
[314835477,1708582242411,-500.0,0.00035616,2]
[314835479,1708582242420,-500.0,0.00035616,2]
[314835481,1708582242428,-500.0,0.00035616,2]
[314835483,1708582242437,-500.0,0.00035616,2]
[314835485,1708582242446,-500.0,0.00035616,2]
[314835486,1708582242455,-500.0,0.00035616,2]
[314835489,1708582242465,-500.0,0.00035616,2]
[314835491,1708582242474,-500.0,0.00035616,2]
[314835493,1708582242483,-504.3998035,0.00035616,2]
[314835495,1708582242492,-311.06075396,0.00035616,2]
[314835497,1708582242501,-500.0,0.00035616,2]
[314835499,1708582242510,-500.0,0.00035616,2]
[314835501,1708582242519,-500.0,0.00035616,2]
[314835503,1708582242528,-515.72019042,0.00035616,2]
[314835505,1708582242538,-500.0,0.00035616,2]
[314835507,1708582242547,-500.0,0.00035616,2]
[314835509,1708582242557,-500.0,0.00035616,2]
[314835511,1708582242566,-211.64975722,0.00035616,2]
[314835513,1708582242576,-500.0,0.00035616,2]
[314835515,1708582242585,-645.82,0.00035616,2]
[314835517,1708582242594,-500.0,0.00035616,2]
[314835519,1708582242603,-500.0,0.00035616,2]
[314835521,1708582242612,-500.0,0.00035616,2]
[314835523,1708582242621,-500.0,0.00035616,2]
[314835525,1708582242630,-500.0,0.00035616,2]
[314835527,1708582242639,-500.0,0.00035616,2]
[314835529,1708582242648,-1109.54,0.00035616,2]
[314835531,1708582242657,-500.0,0.00035616,2]
[314835533,1708582242666,-500.0,0.00035616,2]
[314835535,1708582242675,-500.0,0.00035616,2]
[314835537,1708582242688,-168.83658098,0.00035616,2]
[314835539,1708582242700,-500.0,0.00035616,2]
[314835542,1708582242710,-500.0,0.00035616,2]
[314835544,1708582242719,-500.0,0.00035616,2]
[314835546,1708582242728,-500.0,0.00035616,2]
[314835548,1708582242737,-500.0,0.00035616,2]
[314835550,1708582242746,-500.0,0.00035616,2]
[314835552,1708582242755,-500.0,0.00035616,2]
[314835554,1708582242765,-500.0,0.00035616,2]
[314835556,1708582242774,-718.86,0.00035616,2]
[314835558,1708582242783,-519.05322722,0.00035616,2]
[314835560,1708582242792,-500.0,0.00035616,2]
[314835562,1708582242802,-500.0,0.00035616,2]
[314835564,1708582242811,-500.0,0.00035616,2]
[314835566,1708582242821,-718.09,0.00035616,2]
[314835568,1708582242833,-500.0,0.00035616,2]
[314835570,1708582242843,-500.0,0.00035616,2]
[314835572,1708582242852,-500.0,0.00035616,2]
[314835575,1708582242862,-500.0,0.00035616,2]
[314835578,1708582242871,-500.0,0.00035616,2]
[314835581,1708582242881,-500.0,0.00035616,2]
[314835584,1708582242890,-752.6,0.00035616,2]
[314835587,1708582242899,-517.72,0.00035616,2]
[314835590,1708582242909,-500.0,0.00035616,2]
[314835593,1708582242919,-500.0,0.00035616,2]
[314835597,1708582242928,-500.0,0.00035616,2]
[314835600,1708582242938,-500.0,0.00035616,2]
[314835602,1708582242947,-500.0,0.00035616,2]
[314835605,1708582242956,-500.0,0.00035616,2]
[314835607,1708582242966,-500.0,0.00035616,2]
[314835608,1708582242975,-585.08,0.00035616,2]
[314835611,1708582242984,-503.82884417,0.00035616,2]
[314835613,1708582242993,-500.0,0.00035616,2]
[314835615,1708582243003,-682.3,0.00035616,2]
[314835617,1708582243012,-164.31473652,0.00035616,2]
[314835619,1708582243022,-500.0,0.00035616,2]
[314835621,1708582243031,-500.0,0.00035616,2]
[314835623,1708582243040,-435.96425615,0.00035616,2]
[314835625,1708582243050,-500.0,0.00035616,2]
[314835627,1708582243058,-500.0,0.00035616,2]
[314835629,1708582243067,-500.0,0.00035616,2]
[314835631,1708582243077,-500.0,0.00035616,2]
[314835633,1708582243086,-500.0,0.00035616,2]